bitfinex/quotes_SOLUSD_20250313
["timestamp","ask_amount","ask_price","bid_price","bid_amount"]
[1741841104116,0.14216157,124.26,124.22,78.19161237]
[1741841104117,42.95664875,124.26,124.22,78.19161237]
[1741841105226,32.35459989,124.26,124.22,78.19161237]
[1741841105821,32.21243832,124.26,124.22,78.19161237]
[1741841106130,52.49798718,124.27,124.22,110.40645069]
[1741841106316,28.33314886,124.27,124.22,110.40645069]
[1741841106627,24.16483832,124.26,124.22,78.19161237]
[1741841107327,24.16483832,124.25,124.22,78.19161237]
[1741841107537,24.16483832,124.24,124.22,78.19161237]
[1741841108114,24.16483832,124.23,124.22,78.19161237]
[1741841108732,24.16483832,124.24,124.22,78.19161237]
[1741841109233,24.16483832,124.23,124.22,78.19161237]
[1741841109433,32.21433832,124.23,124.22,0.03]
[1741841109930,32.21383832,124.24,124.22,0.03]
[1741841110533,24.16483832,124.26,124.22,0.03]
[1741841110837,32.21243832,124.26,124.22,78.19161237]
[1741841111031,1.6365,124.27,124.23,24.16483832]
[1741841111239,0.03,124.27,124.23,24.16483832]
[1741841111443,0.03,124.27,124.24,24.16483832]
[1741841111608,0.03,124.27,124.23,32.21423832]
[1741841111815,0.03,124.27,124.23,110.37585069]
[1741841113716,0.03,124.27,124.24,24.16483832]
[1741841114835,0.03,124.27,124.26,24.16483832]
[1741841115140,0.03,124.27,124.26,102.32645069]
[1741841117228,0.03,124.27,124.26,110.37405069]
[1741841118047,0.03,124.27,124.26,118.51455069]
[1741841118243,0.03,124.27,124.26,430.51455069]
[1741841118748,0.063,124.29,124.27,78.13161237]
[1741841118941,0.063,124.29,124.28,24.16483832]
[1741841119248,0.063,124.29,124.28,32.21113832]
[1741841121044,0.063,124.29,124.27,110.34335069]
[1741841121230,0.063,124.29,124.28,24.16483832]
[1741841121847,0.063,124.29,124.27,110.34335069]
[1741841122235,0.063,124.29,124.28,24.16483832]
[1741841123752,0.063,124.29,124.28,32.21113832]
[1741841124544,0.063,124.29,124.28,245.54275069]
[1741841124846,0.063,124.31,124.3,24.16483832]
[1741841125035,0.063,124.31,124.3,244.69345069]
[1741841126126,0.063,124.31,124.3,220.52861237]
[1741841126825,0.063,124.31,124.3,244.69345069]
[1741841127025,0.063,124.31,124.3,220.52861237]
[1741841127226,0.063,124.31,124.3,244.69345069]
[1741841127457,0.063,124.31,124.3,252.73845069]
[1741841130460,0.063,124.31,124.3,228.57361237]
[1741841131370,0.063,124.31,124.3,252.73845069]
[1741841131652,0.063,124.33,124.31,78.00561237]
[1741841131864,0.063,124.33,124.32,24.16483832]
[1741841133253,0.063,124.33,124.31,102.17045069]
[1741841133433,0.063,124.33,124.31,110.21445069]
[1741841133760,0.063,124.33,124.32,24.16483832]
[1741841134561,0.063,124.33,124.32,32.20853832]
[1741841135063,0.063,124.33,124.32,24.16483832]
[1741841135435,0.063,124.33,124.32,32.20853832]
[1741841136445,0.063,124.33,124.32,245.41415069]
[1741841139051,0.063,124.35,124.34,20.0]
[1741841139364,0.063,124.35,124.34,264.56745069]
[1741841141189,0.063,124.35,124.34,272.60985069]
[1741841142354,0.063,124.35,124.34,264.56745069]
[1741841142555,0.063,124.35,124.34,220.40261237]
[1741841143259,25.88749989,124.35,124.34,77.94261237]
[1741841144265,17.17770772,124.35,124.34,77.94261237]
[1741841144558,25.21950772,124.35,124.34,77.94261237]
[1741841145866,25.07734615,124.35,124.34,77.94261237]
[1741841146235,33.90979256,124.35,124.34,77.94261237]
[1741841148065,33.90979256,124.35,124.3,78.00561237]
[1741841148253,24.14533099,124.34,124.3,78.00561237]
[1741841148857,9.76446157,124.35,124.3,78.00561237]
[1741841149249,24.14533099,124.34,124.3,78.00561237]
[1741841149761,32.18803099,124.34,124.3,78.00561237]
[1741841150581,8.0427,124.34,124.3,78.00561237]
[1741841150866,24.14533099,124.31,124.3,78.00561237]
[1741841151057,24.14533099,124.31,124.3,0.063]
[1741841151264,30.57573099,124.32,124.3,0.063]
[1741841151575,28.1488,124.34,124.3,0.063]
[1741841151576,32.18803099,124.34,124.3,0.063]
[1741841151749,32.18803099,124.34,124.3,78.00561237]
[1741841153162,24.14533099,124.31,124.3,78.00561237]
[1741841153366,24.14533099,124.31,124.3,0.063]
[1741841154259,32.18973099,124.31,124.3,0.063]
[1741841154561,24.14533099,124.32,124.3,0.063]
[1741841154767,24.14533099,124.33,124.3,0.063]
[1741841155764,24.14533099,124.32,124.3,0.063]
[1741841156558,24.14533099,124.31,124.3,0.063]
[1741841156961,24.28749256,124.32,124.3,0.063]
[1741841158763,24.14533099,124.32,124.3,0.063]
[1741841159655,32.18903099,124.32,124.3,0.063]
[1741841159863,24.14533099,124.32,124.3,0.063]
[1741841161774,32.18933099,124.32,124.3,0.063]
[1741841162568,32.54335413,124.31,124.3,0.0001]
[1741841162772,0.28432314,124.29,124.23,77.94261237]
[1741841162975,24.14533099,124.25,124.22,77.97261237]
[1741841163184,24.14533099,124.28,124.24,77.97261237]
[1741841164069,24.28749256,124.29,124.24,86.02141237]
[1741841164951,24.14533099,124.29,124.24,86.02141237]
[1741841165164,52.70532218,124.31,124.25,24.14533099]
[1741841165363,52.70532218,124.31,124.25,237.28794336]
[1741841165569,44.66052218,124.31,124.26,24.14533099]
[1741841165975,24.14533099,124.3,124.25,237.28794336]
[1741841166753,32.25903099,124.31,124.25,245.33574336]
[1741841167453,1.6265,124.31,124.26,24.14533099]
[1741841167759,25.77183099,124.31,124.26,24.14533099]
[1741841168060,25.77183099,124.31,124.25,245.33574336]
[1741841169076,25.77183099,124.31,124.26,24.14533099]
[1741841170286,25.77183099,124.31,124.27,8.0469]
[1741841171230,1.6265,124.31,124.27,8.0469]
[1741841171365,1.6265,124.31,124.27,85.98951237]
[1741841172254,24.31749256,124.32,124.27,85.98951237]
[1741841172484,24.17533099,124.32,124.27,110.13484336]
[1741841173386,32.21933099,124.32,124.27,85.98951237]
[1741841173582,24.14533099,124.31,124.27,77.94261237]
[1741841174382,32.21933099,124.32,124.27,85.98951237]
[1741841175489,24.17533099,124.32,124.27,110.13484336]
[1741841175689,24.17533099,124.32,124.27,85.98951237]
[1741841176202,24.17533099,124.32,124.27,110.13484336]
[1741841177900,0.03,124.32,124.27,245.33484336]
[1741841178103,0.03,124.32,124.28,24.14533099]
[1741841178404,0.03,124.32,124.28,102.08794336]
[1741841178991,0.03,124.32,124.29,24.14533099]
[1741841179193,0.03,124.32,124.3,24.14533099]
[1741841179405,0.03,124.32,124.31,24.14533099]
[1741841179603,0.03,124.32,124.31,102.08794336]
[1741841180100,0.03,124.32,124.31,110.13234336]
[1741841181782,0.03,124.32,124.31,102.08794336]
[1741841183585,0.03,124.32,124.31,77.94261237]
[1741841184497,0.03,124.32,124.31,85.98701237]
[1741841186685,0.03,124.32,124.31,101.4369897]
[1741841187004,0.03,124.32,124.31,236.6369897]
[1741841190592,0.063,124.35,124.34,20.0]
[1741841190796,0.063,124.35,124.34,255.8225897]
[1741841192404,0.063,124.35,124.34,264.49175943]
[1741841192791,0.063,124.35,124.34,272.53415943]
[1741841193919,0.063,124.35,124.34,264.49175943]
[1741841194093,0.063,124.35,124.34,220.37261237]
[1741841194790,0.063,124.35,124.34,77.91261237]
[1741841202213,0.063,124.35,124.34,102.03175943]
[1741841203022,0.063,124.35,124.34,110.07415943]
[1741841206736,0.063,124.35,124.34,245.27415943]
[1741841211605,0.063,124.35,124.34,213.11261237]
[1741841212507,0.063,124.35,124.34,77.91261237]
[1741841216649,0.063,124.35,124.34,101.39941952]
[1741841218318,0.063,124.35,124.34,236.59941952]
[1741841226858,0.063,124.35,124.34,213.11261237]
[1741841227157,0.063,124.35,124.34,228.55701952]
[1741841227670,0.063,124.35,124.34,236.59941952]
[1741841229430,0.063,124.35,124.34,228.55701952]
[1741841229825,0.063,124.35,124.34,236.59941952]
[1741841238237,0.0001,124.35,124.34,255.53339152]
[1741841241863,0.063,124.36,124.35,85.95431237]
[1741841242058,0.063,124.36,124.35,101.39871952]
[1741841243263,0.063,124.36,124.35,77.91251237]
[1741841248651,0.063,124.36,124.32,77.91251237]
[1741841248849,15.50740715,124.36,124.32,77.91251237]
[1741841249055,23.54860715,124.36,124.32,77.91251237]
[1741841249257,8.1042,124.36,124.32,77.91251237]
[1741841249649,23.54860715,124.36,124.32,77.91251237]
[1741841250464,15.44440715,124.34,124.32,77.91251237]
[1741841250863,15.44440715,124.35,124.32,77.91251237]
[1741841251560,27.84589834,124.35,124.32,77.91251237]
[1741841251865,12.40149119,124.35,124.32,77.91251237]
[1741841252481,60.75890728,124.36,124.32,77.91251237]
[1741841252687,35.95009834,124.36,124.32,77.91251237]
[1741841252987,35.95009834,124.36,124.32,93.35691952]
[1741841252988,12.46449119,124.36,124.32,93.35691952]
[1741841253153,12.46449119,124.36,124.32,101.40051952]
[1741841253671,12.46449119,124.36,124.32,93.35691952]
[1741841253975,0.063,124.36,124.32,93.35691952]
[1741841254183,0.063,124.36,124.32,85.95621237]
[1741841254355,0.063,124.36,124.32,101.40061952]
[1741841257275,0.063,124.36,124.32,93.35691952]
[1741841258560,0.063,124.36,124.32,101.40061952]
[1741841259284,0.063,124.36,124.32,236.60061952]
[1741841260179,0.063,124.36,124.32,228.55691952]
[1741841260355,0.063,124.36,124.32,236.60061952]
[1741841261679,0.063,124.36,124.32,228.55691952]
[1741841261891,15.44440715,124.35,124.32,213.11251237]
[1741841262382,15.50740715,124.36,124.32,213.11251237]
[1741841262962,23.54910715,124.36,124.32,213.11251237]
[1741841265186,23.54910715,124.36,124.32,77.91251237]
[1741841265792,15.50740715,124.36,124.32,77.91251237]
[1741841265967,0.063,124.36,124.32,93.35691952]
[1741841267274,0.063,124.36,124.32,101.40061952]
[1741841268073,0.063,124.36,124.33,15.44440715]
[1741841268495,0.063,124.36,124.32,101.40061952]
[1741841268907,0.063,124.36,124.33,15.44440715]
[1741841271212,0.063,124.36,124.33,236.59991952]
[1741841271791,0.063,124.36,124.33,221.15551237]
[1741841271990,0.063,124.36,124.33,236.59991952]
[1741841274401,0.063,124.36,124.35,15.44440715]
[1741841275610,0.063,124.36,124.34,1.5367]
[1741841275811,0.063,124.36,124.35,43.48620715]
[1741841280038,0.063,124.36,124.35,256.59871952]
[1741841280524,0.063,124.36,124.35,97.91251237]
[1741841280726,0.063,124.36,124.35,113.35691952]
[1741841281052,0.063,124.36,124.35,213.11251237]
[1741841282106,0.063,124.36,124.35,236.59871952]
[1741841282935,0.063,124.36,124.35,213.11251237]
[1741841285649,0.063,124.36,124.35,77.91251237]
[1741841285857,15.50740715,124.36,124.35,77.91251237]
[1741841286641,0.063,124.36,124.35,77.91251237]
[1741841287559,0.063,124.36,124.35,77.97551237]
[1741841289145,0.063,124.36,124.35,101.46171952]
[1741841289333,0.063,124.36,124.35,236.66171952]
[1741841290863,0.063,124.36,124.35,228.61991952]
[1741841291158,0.063,124.36,124.35,213.17551237]
[1741841292766,0.063,124.36,124.35,77.97551237]
[1741841292979,8.1041,124.36,124.35,77.97551237]
[1741841293264,0.063,124.36,124.35,77.97551237]
[1741841294155,0.063,124.36,124.35,86.01731237]
[1741841294547,0.063,124.36,124.35,101.46171952]
[1741841295670,0.063,124.36,124.35,77.97551237]
[1741841295879,23.67553029,124.36,124.35,0.063]
[1741841296055,18.64964886,124.35,124.31,0.063]
[1741841296375,7.9468,124.36,124.31,77.97551237]
[1741841296561,15.44440715,124.34,124.31,77.97551237]
[1741841297178,15.44440715,124.33,124.31,77.97551237]
[1741841297850,23.48770715,124.33,124.31,77.97551237]
[1741841298051,15.44440715,124.34,124.31,77.97551237]
[1741841298266,23.48690715,124.34,124.31,77.97551237]
[1741841299771,15.44440715,124.33,124.31,77.97551237]
[1741841300472,23.48690715,124.34,124.31,77.97551237]
[1741841300971,15.44440715,124.34,124.31,77.97551237]
[1741841301363,15.44440715,124.35,124.31,77.97551237]
[1741841301768,35.79269834,124.36,124.31,221.21971237]
[1741841301952,43.83389834,124.36,124.31,221.21971237]
[1741841302781,15.44440715,124.35,124.31,213.17551237]
[1741841304060,23.48640715,124.35,124.31,213.17551237]
[1741841307594,25.10680715,124.36,124.31,221.21971237]
[1741841307761,25.10680715,124.36,124.31,213.17551237]
[1741841308761,37.50829834,124.36,124.31,213.17551237]
[1741841309562,22.06389119,124.36,124.31,221.21981237]
[1741841309763,37.50829834,124.36,124.31,221.21981237]
[1741841310288,25.10680715,124.36,124.31,221.21981237]
[1741841310491,15.44440715,124.32,124.31,0.063]
[1741841311086,42.15737915,124.32,124.31,0.063]
[1741841311459,50.20107915,124.32,124.31,0.063]
[1741841311771,18.933972,124.31,124.27,0.063]
[1741841311979,15.44440715,124.28,124.27,0.063]
[1741841313086,23.49070715,124.28,124.27,0.063]
[1741841313677,15.44440715,124.28,124.27,0.063]
[1741841315290,23.49070715,124.28,124.27,0.063]
[1741841315885,42.42467915,124.28,124.27,0.063]
[1741841316284,15.44440715,124.28,124.27,0.063]
[1741841316905,23.49070715,124.28,124.27,0.063]
[1741841317072,42.42467915,124.28,124.27,0.063]
[1741841318489,42.28251758,124.28,124.27,0.063]
[1741841319280,42.42467915,124.28,124.27,0.063]
[1741841319481,15.44440715,124.28,124.27,0.063]
[1741841319793,23.49070715,124.28,124.27,0.063]
[1741841319974,42.42467915,124.28,124.27,0.063]
[1741841323489,23.49070715,124.28,124.27,0.063]
[1741841324400,15.44440715,124.28,124.27,0.063]
[1741841325672,15.44440715,124.29,124.27,0.063]
[1741841327277,15.44440715,124.3,124.27,0.063]
[1741841329186,15.44440715,124.29,124.27,0.063]
[1741841329600,15.44440715,124.29,124.27,77.97551237]
[1741841330602,15.44440715,124.3,124.27,77.97551237]
[1741841331103,15.44440715,124.28,124.27,77.97551237]
[1741841332195,34.37837915,124.28,124.27,0.063]
[1741841332503,15.44440715,124.28,124.27,0.063]
[1741841333185,23.49070715,124.28,124.27,0.063]
[1741841334004,15.44440715,124.28,124.27,0.063]
[1741841334302,23.49070715,124.28,124.27,0.063]
[1741841335184,15.44440715,124.28,124.27,0.063]
[1741841335884,8.0458,124.29,124.27,0.063]
[1741841335885,15.44440715,124.29,124.27,0.063]
[1741841336080,15.44440715,124.3,124.27,0.063]
[1741841336409,15.44440715,124.29,124.27,0.063]
[1741841336901,15.44440715,124.3,124.27,0.063]
[1741841339013,15.44440715,124.29,124.27,0.063]
[1741841339506,23.49020715,124.29,124.27,0.063]
[1741841339710,15.44440715,124.28,124.27,0.063]
[1741841340696,15.44440715,124.29,124.27,0.063]
[1741841341592,15.44440715,124.28,124.27,0.063]
[1741841342522,15.44440715,124.29,124.27,0.063]
[1741841342822,15.44440715,124.28,124.27,0.063]
[1741841344422,23.49010715,124.29,124.27,0.063]
[1741841344610,15.44440715,124.28,124.27,0.063]
[1741841345112,15.44440715,124.29,124.27,0.063]
[1741841346713,15.44440715,124.28,124.27,0.063]
[1741841348016,23.49070715,124.28,124.27,0.063]
[1741841348218,15.44440715,124.28,124.27,0.063]
[1741841348535,0.03,124.31,124.27,93.41991952]
[1741841348721,0.03,124.31,124.29,15.44440715]
[1741841348899,0.03,124.31,124.3,15.44440715]
[1741841349099,0.03,124.31,124.3,228.55691952]
[1741841349300,0.03,124.31,124.3,235.85691952]
[1741841350041,0.03,124.31,124.3,243.90191952]
[1741841350202,0.03,124.31,124.3,252.59633918]
[1741841350727,0.03,124.31,124.3,220.41251237]
[1741841350910,0.03,124.31,124.3,244.55133918]
[1741841351328,0.03,124.31,124.3,220.41251237]
[1741841352909,0.03,124.31,124.3,213.11251237]
[1741841352910,24.16882681,124.31,124.3,213.11251237]
[1741841353137,24.16882681,124.31,124.27,213.17551237]
[1741841354131,32.18402681,124.3,124.27,213.17551237]
[1741841354344,24.13882681,124.29,124.27,213.17551237]
[1741841355332,24.13882681,124.28,124.27,0.063]
[1741841357718,32.18512681,124.28,124.27,0.063]
[1741841362620,24.13882681,124.28,124.27,0.063]
[1741841362820,24.13882681,124.3,124.27,0.063]
[1741841363141,32.18392681,124.3,124.27,0.063]
[1741841363523,24.13882681,124.29,124.27,0.063]
[1741841363842,24.13882681,124.28,124.27,0.063]
[1741841365129,32.18512681,124.28,124.27,0.063]
[1741841365944,8.0463,124.28,124.27,0.063]
[1741841366134,32.18512681,124.28,124.27,0.063]
[1741841367339,24.13882681,124.28,124.27,0.063]
[1741841367847,32.18462681,124.29,124.27,0.063]
[1741841368645,24.13882681,124.28,124.27,0.063]
[1741841369728,43.07279881,124.28,124.27,0.063]
[1741841370848,51.11909881,124.28,124.27,0.063]
[1741841372149,52.69929881,124.28,124.27,0.063]
[1741841373249,78.88219881,124.28,124.24,0.03]
[1741841373550,24.13882681,124.25,124.24,0.03]
[1741841375446,32.18702681,124.25,124.24,0.03]
[1741841376753,24.13882681,124.25,124.24,0.03]
[1741841377141,32.18702681,124.25,124.24,0.03]
[1741841380346,23.52618282,124.25,124.24,0.03]
[1741841381555,42.46015482,124.25,124.24,0.03]
[1741841383857,15.47798282,124.25,124.24,0.03]
[1741841384244,23.52618282,124.25,124.24,0.03]
[1741841385362,23.52578282,124.26,124.24,0.03]
[1741841386970,15.47798282,124.26,124.24,0.03]
[1741841387267,23.52558282,124.26,124.24,0.03]
[1741841390151,15.47798282,124.27,124.24,0.03]
[1741841391273,15.47798282,124.26,124.24,0.03]
[1741841392467,23.52558282,124.26,124.24,0.03]
[1741841394174,15.47798282,124.26,124.24,0.03]
[1741841394350,23.52518282,124.27,124.24,0.03]
[1741841395369,8.0472,124.27,124.24,0.03]
[1741841395565,15.47798282,124.26,124.24,0.03]
[1741841396266,8.0472,124.27,124.24,0.03]
[1741841396474,15.50798282,124.28,124.24,0.03]
[1741841396951,23.55428282,124.28,124.24,0.03]
[1741841397151,15.50798282,124.28,124.24,0.03]
[1741841397975,15.50798282,124.28,124.24,8.0789]
[1741841398977,23.55428282,124.28,124.24,0.03]
[1741841399681,15.47798282,124.27,124.24,0.03]
[1741841400293,23.55428282,124.28,124.24,0.03]
[1741841400987,0.03,124.28,124.24,0.03]
[1741841403487,0.03,124.28,124.26,15.47798282]
[1741841405392,0.03,124.28,124.25,23.52618282]
[1741841405583,0.03,124.28,124.26,15.47798282]
[1741841406081,0.03,124.28,124.26,22.73798282]
[1741841406890,0.03,124.28,124.27,15.47798282]
[1741841407081,0.03,124.28,124.27,228.59049519]
[1741841407677,0.03,124.28,124.27,236.63739519]
[1741841408995,0.03,124.28,124.27,77.91251237]
[1741841413388,15.50798282,124.28,124.24,213.14251237]
[1741841413591,15.47798282,124.27,124.24,77.94251237]
[1741841414502,15.50798282,124.28,124.24,77.94251237]
[1741841415903,23.55438282,124.28,124.24,77.94251237]
[1741841416494,8.0764,124.28,124.24,77.94251237]
[1741841416695,23.55438282,124.28,124.24,77.94251237]
[1741841417786,15.50798282,124.28,124.24,77.94251237]
[1741841417986,0.03,124.28,124.24,85.99131237]
[1741841418702,0.03,124.28,124.24,77.94251237]
[1741841418703,15.50798282,124.28,124.24,77.94251237]
[1741841419678,18.963972,124.28,124.24,77.94251237]
[1741841419883,15.50798282,124.28,124.24,85.99131237]
[1741841421003,0.03,124.28,124.24,85.99131237]
[1741841421407,0.03,124.28,124.24,101.46929519]
[1741841421698,0.03,124.28,124.25,22.73798282]
[1741841422487,0.03,124.28,124.27,15.47798282]
[1741841422688,0.03,124.28,124.27,228.59049519]
[1741841425087,0.03,124.28,124.27,213.11251237]
[1741841438213,0.03,124.28,124.27,77.91251237]
[1741841438422,15.50798282,124.28,124.27,77.91251237]
[1741841438714,15.50798282,124.28,124.24,213.14251237]
[1741841438920,15.47798282,124.27,124.24,77.94251237]
[1741841439714,15.47798282,124.25,124.24,0.03]
[1741841440614,23.52618282,124.25,124.24,0.03]
[1741841443018,44.01255482,124.25,124.24,0.03]
[1741841444201,43.87039325,124.25,124.24,0.03]
[1741841444602,44.01255482,124.25,124.24,0.03]
[1741841445623,18.933972,124.24,124.22,0.03]
[1741841445822,15.47798282,124.23,124.22,0.03]
[1741841446324,23.52748282,124.23,124.22,0.03]
[1741841447309,15.47798282,124.23,124.22,0.03]
[1741841447516,1.5524,124.25,124.22,0.03]
[1741841447713,15.47798282,124.24,124.22,0.03]
[1741841448813,15.47798282,124.23,124.22,0.03]
[1741841450800,23.52748282,124.23,124.22,0.03]
[1741841455824,42.46145482,124.23,124.22,0.03]
[1741841456232,15.47798282,124.23,124.22,0.03]
[1741841456927,23.52748282,124.23,124.22,0.03]
[1741841457732,15.47798282,124.24,124.22,0.03]
[1741841457928,23.52708282,124.24,124.22,0.03]
[1741841458720,0.063,124.25,124.22,0.03]
[1741841458932,15.54098282,124.25,124.22,0.03]
[1741841459229,23.58938282,124.25,124.22,0.03]
[1741841460629,15.47798282,124.23,124.22,0.03]
[1741841461540,15.76230596,124.23,124.22,0.03]
[1741841461715,17.42310596,124.23,124.22,0.03]
[1741841462235,17.28094439,124.23,124.22,0.03]
[1741841462732,0.28432314,124.22,124.21,0.03]
[1741841462942,34.41195482,124.22,124.21,0.03]
[1741841464330,42.46215482,124.22,124.21,0.03]
[1741841466227,9.7104,124.23,124.21,0.03]
[1741841466441,15.47798282,124.22,124.21,0.03]
[1741841466622,34.41195482,124.22,124.21,0.03]
[1741841466940,15.47798282,124.22,124.21,0.03]
[1741841468419,23.52818282,124.22,124.21,0.03]
[1741841469433,15.47798282,124.22,124.21,0.03]
[1741841471340,18.85481043,124.25,124.21,0.03]
[1741841471543,0.063,124.25,124.21,77.94251237]
[1741841471842,15.54098282,124.25,124.21,77.94251237]
[1741841472247,0.063,124.25,124.21,77.94251237]
[1741841472920,15.54098282,124.25,124.21,77.94251237]
[1741841473344,15.47798282,124.24,124.21,77.94251237]
[1741841474440,15.47798282,124.23,124.21,77.94251237]
[1741841474647,8.0502,124.22,124.21,77.94251237]
[1741841474822,15.47798282,124.24,124.21,0.03]
[1741841475025,23.52708282,124.24,124.21,0.03]
[1741841477252,8.0491,124.24,124.21,0.03]
[1741841477550,0.063,124.25,124.21,93.42049519]
[1741841477935,8.1114,124.25,124.21,77.94251237]
[1741841478646,23.58938282,124.25,124.21,77.94251237]
[1741841479350,8.1114,124.25,124.21,77.94251237]
[1741841480748,23.58938282,124.25,124.21,77.94251237]
[1741841482444,8.1114,124.25,124.21,77.94251237]
[1741841484347,15.54098282,124.25,124.21,77.94251237]
[1741841486439,0.063,124.25,124.21,77.94251237]
[1741841487040,0.063,124.25,124.22,15.47798282]
[1741841487247,0.063,124.25,124.24,15.47798282]
[1741841487429,0.063,124.25,124.24,93.39049519]
[1741841487748,0.063,124.25,124.24,77.91251237]
[1741841488537,0.063,124.25,124.24,236.63939519]
[1741841488733,0.063,124.25,124.24,238.28099519]
[1741841490354,0.03,124.28,124.27,20.0]
[1741841490648,0.03,124.28,124.27,105.10951237]
[1741841491135,0.03,124.28,124.27,120.58749519]
[1741841491339,0.03,124.28,124.27,128.63439519]
[1741841491853,0.03,124.28,124.27,120.58749519]
[1741841494552,0.03,124.28,124.27,77.84951237]
[1741841495232,15.50798282,124.28,124.24,213.04951237]
[1741841495546,15.47798282,124.26,124.22,213.04951237]
[1741841496141,15.47798282,124.27,124.22,213.04951237]
[1741841496331,0.03,124.28,124.24,15.47798282]
[1741841496753,0.03,124.28,124.24,23.52668282]
[1741841497050,0.03,124.28,124.25,15.47798282]
[1741841497257,0.03,124.28,124.26,15.47798282]
[1741841498955,0.03,124.28,124.25,30.78568282]
[1741841501757,0.03,124.28,124.25,22.73798282]
[1741841502055,0.03,124.28,124.25,7.26]
[1741841502457,0.03,124.28,124.25,85.10951237]
[1741841502654,15.50798282,124.28,124.25,85.10951237]
[1741841502962,15.47798282,124.27,124.23,85.10951237]
[1741841503334,15.47798282,124.26,124.23,77.84951237]
[1741841503538,1.79136157,124.28,124.23,77.84951237]
[1741841503539,15.47798282,124.25,124.23,77.84951237]
[1741841503739,15.47798282,124.26,124.23,77.84951237]
[1741841504039,1.6492,124.28,124.23,93.32749519]
[1741841504452,15.47798282,124.27,124.23,77.84951237]
[1741841504665,23.52588282,124.26,124.23,77.84951237]
[1741841505647,15.47798282,124.24,124.21,77.87951237]
[1741841506744,23.52718282,124.24,124.21,77.87951237]
[1741841509740,8.0492,124.24,124.21,77.87951237]
[1741841509941,15.47798282,124.26,124.21,77.87951237]
[1741841510153,23.52578282,124.26,124.21,77.87951237]
[1741841510358,23.52578282,124.26,124.21,101.40799519]
[1741841510649,23.52578282,124.26,124.21,85.93001237]
[1741841511061,15.47798282,124.26,124.21,101.40799519]
[1741841511354,23.52568282,124.26,124.21,85.93001237]
[1741841511539,15.47798282,124.26,124.21,101.40799519]
[1741841512051,23.52518282,124.27,124.21,101.40799519]
[1741841512360,1.6492,124.28,124.24,15.47798282]
[1741841512550,1.6492,124.28,124.24,77.84951237]
[1741841512750,9.6957,124.28,124.24,77.84951237]
[1741841513339,15.47798282,124.27,124.24,77.84951237]
[1741841513967,1.6492,124.28,124.24,77.84951237]
[1741841514153,9.6957,124.28,124.24,77.84951237]
[1741841514356,25.17368282,124.28,124.24,77.84951237]
[1741841516482,23.52498282,124.27,124.24,77.84951237]
[1741841517862,0.03,124.28,124.24,101.37619519]
[1741841518162,0.03,124.28,124.25,15.47798282]
[1741841518363,0.03,124.28,124.24,93.32749519]
[1741841518940,0.03,124.28,124.24,77.84951237]
[1741841519137,15.50798282,124.28,124.24,77.84951237]
[1741841519549,0.03,124.28,124.24,77.84951237]
[1741841520361,0.03,124.28,124.24,85.89821237]
[1741841521853,0.03,124.28,124.24,101.37619519]
[1741841522353,0.03,124.28,124.24,85.89821237]
[1741841523984,0.03,124.28,124.24,101.37619519]
[1741841524362,0.03,124.28,124.24,85.89821237]
[1741841528853,0.03,124.28,124.25,15.47798282]
[1741841529454,0.03,124.28,124.26,15.47798282]
[1741841529857,0.03,124.28,124.27,15.47798282]
[1741841530559,0.03,124.28,124.26,100.58749519]
[1741841530753,0.03,124.28,124.26,108.63469519]
[1741841531671,0.03,124.28,124.26,100.58749519]
[1741841533351,0.03,124.28,124.26,85.10951237]
[1741841533868,17.17258282,124.28,124.24,213.04951237]
[1741841534072,17.17258282,124.28,124.24,77.84951237]
[1741841534772,25.21908282,124.28,124.24,77.84951237]
[1741841535462,15.47798282,124.27,124.24,77.84951237]
[1741841536068,9.7411,124.28,124.24,77.84951237]
[1741841536069,15.47798282,124.26,124.24,77.84951237]
[1741841536259,15.47798282,124.26,124.23,0.063]
[1741841536260,15.47798282,124.25,124.23,0.063]